fUST/lending_fUST_20251029
["ID","MTS","AMOUNT","RATE_DAILY","PERIOD"]
[392591050,1761713439035,-200.0,0.00021172,2]
[392591051,1761713439044,-159.79901783,0.00021209,2]
[392591052,1761713439059,-500.0,0.00021218,2]
[392591053,1761713439068,-304.61833109,0.00021219,2]
[392591054,1761713439078,-500.0,0.00021219,2]
[392591055,1761713439087,-500.0,0.00021219,2]
[392591056,1761713439096,-547.12201159,0.00021219,2]
[392591057,1761713439105,-477.0,0.00021226,2]
[392591058,1761713439115,-477.0,0.00021252,2]
[392591059,1761713439124,-500.0,0.00021273,2]
[392591060,1761713439134,-500.0,0.00021273,2]
[392591061,1761713439144,-500.0,0.00021273,2]
[392591062,1761713439154,-151.0,0.000213,3]
[392591063,1761713439164,-957.6880657,0.00021309,2]
[392591064,1761713439174,-644.813497,0.00021309,7]
[392591065,1761713439184,-644.813497,0.00021309,7]
[392591066,1761713439193,-644.813497,0.00021309,7]
[392591067,1761713439202,-644.813497,0.00021309,7]
[392591068,1761713439211,-316.42906651,0.00021327,2]
[392591069,1761713439221,-155.21108211,0.00021328,2]
[392591070,1761713439230,-500.0,0.00021328,2]
[392591071,1761713439240,-331.0,0.00021333,2]
[392591072,1761713439250,-346.54126626,0.00021333,2]
[392591073,1761713439259,-157.20759983,0.00021383,2]
[392591074,1761713439268,-151.0,0.000214,3]
[392591075,1761713439278,-500.0,0.00021425,2]
[392591076,1761713439287,-185.02695779,0.00021426,2]
[392591077,1761713439296,-441.7086606,0.00021436,2]
[392591078,1761713439305,-500.0,0.00021438,2]
[392591079,1761713439315,-151.0,0.00021462,7]
[392591080,1761713439324,-386.207959,0.00021462,7]
[392591081,1761713439333,-386.207959,0.00021462,7]
[392591082,1761713439343,-386.207959,0.00021462,7]
[392591083,1761713439352,-386.207959,0.00021462,7]
[392591084,1761713439361,-632.0,0.00021462,2]
[392591085,1761713439371,-2166.0,0.00021462,2]
[392591086,1761713439380,-984.0,0.00021462,2]
[392591087,1761713439392,-412.0,0.00021462,2]
[392591088,1761713439401,-150.436,0.00021462,2]
[392591089,1761713439410,-151.0,0.000215,3]
[392591090,1761713439419,-179.707,0.00021516,2]
[392591091,1761713439429,-300.0,0.00021518,20]
[392591092,1761713439439,-300.0,0.00021518,20]
[392591093,1761713439448,-300.0,0.00021518,20]
[392591095,1761713439457,-300.0,0.00021518,20]
[392591097,1761713439467,-300.0,0.00021518,20]
[392591099,1761713439476,-300.0,0.00021518,20]
[392591101,1761713439486,-300.0,0.00021518,20]
[392591103,1761713439497,-300.0,0.00021518,20]
[392591105,1761713439507,-300.0,0.00021518,20]
[392591106,1761713439518,-300.0,0.00021518,20]
[392591108,1761713439527,-300.0,0.00021518,20]
[392591110,1761713439537,-300.0,0.00021518,20]
[392591112,1761713439546,-300.0,0.00021518,20]
[392591114,1761713439556,-300.0,0.00021518,20]
[392591116,1761713439565,-300.0,0.00021518,20]
[392591118,1761713439574,-600.0,0.00021518,20]
[392591120,1761713439584,-800.0,0.00021555,2]
[392591122,1761713439593,-800.0,0.00021562,2]
[392591124,1761713439602,-800.0,0.00021573,2]
[392591126,1761713439611,-800.0,0.00021574,2]
[392591128,1761713439620,-477.0,0.00021579,2]
[392591130,1761713439630,-151.0,0.000216,4]
[392591132,1761713439639,-151.0,0.000216,3]
[392591134,1761713439648,-800.0,0.00021608,2]
[392591136,1761713439657,-477.0,0.00021609,2]
[392591138,1761713439667,-800.0,0.00021615,2]
[392591139,1761713439676,-200.2667367,0.00021622,2]
[392591141,1761713439685,-153.47270162,0.00021622,2]
[392591143,1761713439695,-250.46968281,0.00021622,2]
[392591145,1761713439704,-151.0,0.00021622,2]
[392591147,1761713439714,-500.0,0.00021622,2]
[392591148,1761713439723,-800.0,0.00021624,2]
[392591150,1761713439732,-477.0,0.00021629,2]
[392591151,1761713439742,-800.0,0.00021629,2]
[392591152,1761713439751,-923.58,0.00021645,2]
[392591153,1761713439760,-800.0,0.00021657,2]
[392591154,1761713439769,-477.0,0.00021664,2]
[392591155,1761713439779,-157.91305554,0.00021677,2]
[392591156,1761713439789,-500.0,0.00021677,2]
[392591157,1761713439798,-500.0,0.00021699,2]
[392591158,1761713439807,-151.0,0.000217,4]
[392591159,1761713439816,-151.0,0.000217,4]
[392591160,1761713439825,-800.0,0.00021701,2]
[392591161,1761713439835,-800.0,0.00021704,2]
[392591162,1761713439844,-800.0,0.00021707,2]
[392591163,1761713439854,-644.813497,0.00021707,7]
[392591164,1761713439865,-644.813497,0.00021707,7]
[392591165,1761713439875,-644.813497,0.00021707,7]
[392591166,1761713439883,-644.813497,0.00021707,7]
[392591167,1761713439893,-800.0,0.00021711,2]
[392591168,1761713439904,-151.0,0.00021711,7]
[392591169,1761713439914,-152.783587,0.00021712,7]
[392591170,1761713439923,-500.0,0.00021712,2]
[392591171,1761713439933,-151.0,0.00021721,7]
[392591172,1761713439942,-151.0,0.00021721,7]
[392591173,1761713439952,-168.0,0.00021723,2]
[392591174,1761713439962,-500.0,0.00021732,2]
[392591175,1761713439971,-800.0,0.00021732,2]
[392591176,1761713439981,-800.0,0.00021736,2]
[392591177,1761713439991,-800.0,0.00021747,2]
[392591178,1761713440000,-917.09788668,0.00021749,2]
[392591179,1761713440010,-800.0,0.00021751,2]
[392591180,1761713440020,-800.0,0.00021761,2]
[392591181,1761713440030,-1680.0,0.00021765,2]
[392591182,1761713440040,-420.0,0.00021765,2]
[392591183,1761713440052,-420.0,0.00021765,2]
[392591184,1761713440063,-420.0,0.00021765,2]
[392591185,1761713440072,-420.0,0.00021765,2]
[392591186,1761713440082,-477.0,0.00021781,2]
[392591187,1761713440091,-514.64060395,0.00021786,2]
[392591188,1761713440100,-151.0,0.000218,4]
[392591189,1761713440110,-151.0,0.000218,3]
[392591190,1761713440119,-151.0,0.00021815,7]
[392591191,1761713440134,-386.207959,0.00021815,7]
[392591192,1761713440144,-386.207959,0.00021815,7]
[392591193,1761713440155,-386.207959,0.00021815,7]
[392591194,1761713440169,-386.207959,0.00021815,7]
[392591195,1761713440182,-240.30347554,0.00021817,2]
[392591196,1761713440196,-1680.0,0.00021868,2]
[392591197,1761713440208,-477.0,0.00021885,2]
[392591198,1761713440220,-300.0,0.000219,2]
[392591199,1761713440232,-300.0,0.000219,2]
[392591200,1761713440242,-300.0,0.000219,2]
[392591201,1761713440253,-300.0,0.000219,2]
[392591202,1761713440270,-300.0,0.000219,2]
[392591203,1761713440282,-151.0,0.000219,3]
[392591204,1761713440293,-151.0,0.000219,3]
[392591205,1761713440305,-151.0,0.000219,3]
[392591206,1761713440316,-209.01341564,0.00021916,2]
[392591207,1761713440328,-1000.0,0.00021917,2]
[392591208,1761713440339,-500.0,0.00021917,2]
[392591209,1761713440350,-500.0,0.00021917,2]
[392591210,1761713440362,-500.0,0.00021917,2]
[392591211,1761713440374,-500.0,0.00021917,2]
[392591212,1761713440386,-500.0,0.00021917,2]
[392591213,1761713440397,-500.0,0.00021917,2]
[392591214,1761713440408,-500.0,0.00021917,2]
[392591215,1761713440419,-500.0,0.00021917,2]
[392591216,1761713440430,-500.0,0.00021917,2]
[392591217,1761713440442,-443.30507697,0.00021917,2]
[392591218,1761713440453,-500.0,0.00021917,2]
[392591219,1761713440464,-500.0,0.00021917,2]
[392591220,1761713440475,-500.0,0.00021917,2]
[392591221,1761713440487,-501.28110184,0.00021917,2]
[392591222,1761713440498,-500.0,0.00021917,2]
[392591223,1761713440509,-151.0,0.00021917,7]
[392591224,1761713440520,-151.0,0.00021917,7]
[392591225,1761713440530,-151.0,0.00021917,7]
[392591226,1761713440540,-204.496812,0.00021917,7]
[392591227,1761713440550,-500.0,0.00021917,2]
[392591228,1761713440560,-500.0,0.00021917,2]
[392591229,1761713440571,-500.0,0.00021917,2]
[392591230,1761713440580,-500.0,0.00021917,2]
[392591231,1761713440592,-500.0,0.00021917,2]
[392591232,1761713440603,-500.0,0.00021917,2]
[392591233,1761713440613,-500.0,0.00021917,2]
[392591234,1761713440625,-500.0,0.00021917,2]
[392591235,1761713440636,-500.0,0.00021917,2]
[392591236,1761713440647,-500.0,0.00021917,2]
[392591237,1761713440659,-500.0,0.00021917,2]
[392591238,1761713440670,-500.0,0.00021917,2]
[392591239,1761713440681,-503.44449941,0.00021917,2]
[392591240,1761713440692,-500.0,0.00021917,2]
[392591241,1761713440703,-500.0,0.00021917,2]
[392591242,1761713440713,-500.0,0.00021917,2]
[392591243,1761713440723,-501.82671196,0.00021917,2]
[392591244,1761713440732,-500.0,0.00021917,2]
[392591245,1761713440741,-500.0,0.00021917,2]
[392591246,1761713440752,-870.47,0.00021917,2]
[392591247,1761713440763,-500.0,0.00021917,2]
[392591248,1761713440774,-500.0,0.00021917,2]
[392591249,1761713440785,-500.0,0.00021917,2]
[392591250,1761713440797,-500.0,0.00021917,2]
[392591251,1761713440808,-500.0,0.00021917,2]
[392591252,1761713440819,-500.0,0.00021917,2]
[392591253,1761713440828,-500.0,0.00021917,2]
[392591254,1761713440838,-500.0,0.00021917,2]
[392591255,1761713440848,-500.0,0.00021917,2]
[392591256,1761713440859,-500.0,0.00021917,2]
[392591257,1761713440869,-500.0,0.00021917,2]
[392591258,1761713440880,-155.650077,0.00021917,7]
[392591259,1761713440891,-500.0,0.00021917,2]
[392591260,1761713440902,-500.0,0.00021917,2]
[392591261,1761713440912,-386.207959,0.00021917,7]
[392591262,1761713440922,-386.207959,0.00021917,7]
[392591263,1761713440931,-386.207959,0.00021917,7]
[392591264,1761713440941,-386.207959,0.00021917,7]
[392591265,1761713440951,-386.207959,0.00021917,7]
[392591266,1761713440964,-386.207959,0.00021917,7]
[392591267,1761713440975,-386.207959,0.00021917,7]
[392591268,1761713440985,-386.207957,0.00021917,7]
[392591269,1761713440995,-500.0,0.00021917,2]
[392591270,1761713441006,-500.0,0.00021917,2]
[392591271,1761713441016,-500.0,0.00021917,2]
[392591272,1761713441026,-500.0,0.00021917,2]
[392591273,1761713441037,-500.0,0.00021917,2]
[392591274,1761713441049,-501.44830093,0.00021917,2]
[392591275,1761713441061,-500.0,0.00021917,2]
[392591276,1761713441072,-339.19823219,0.00021917,2]
[392591277,1761713441082,-500.0,0.00021917,2]
[392591278,1761713441093,-500.0,0.00021917,2]
[392591279,1761713441103,-500.0,0.00021917,2]
[392591280,1761713441114,-500.0,0.00021917,2]
[392591281,1761713441125,-500.0,0.00021917,2]
[392591282,1761713441137,-500.0,0.00021917,2]
[392591283,1761713441147,-500.0,0.00021917,2]
[392591284,1761713441157,-337.87972311,0.00021917,2]
[392591285,1761713441168,-492.60180632,0.00021917,2]
[392591286,1761713441179,-500.0,0.00021917,2]
[392591287,1761713441189,-500.0,0.00021917,2]
[392591288,1761713441200,-500.0,0.00021917,2]
[392591289,1761713441212,-644.813497,0.00021917,7]
[392591290,1761713441222,-500.0,0.00021917,2]
[392591291,1761713441242,-644.813497,0.00021917,7]
[392591292,1761713441258,-644.813497,0.00021917,7]
[392591293,1761713441270,-644.813497,0.00021917,7]
[392591294,1761713441284,-644.813497,0.00021917,7]
[392591295,1761713441297,-644.813497,0.00021917,7]
[392591296,1761713441309,-644.813497,0.00021917,7]
[392591297,1761713441321,-644.813496,0.00021917,7]
[392591298,1761713441332,-518.90214934,0.00021917,2]
[392591299,1761713441345,-500.0,0.00021917,2]
[392591300,1761713441366,-500.0,0.00021917,2]
[392591301,1761713441378,-500.0,0.00021917,2]
[392591302,1761713441389,-245.00927794,0.00021917,2]
[392591303,1761713441401,-500.0,0.00021917,2]
[392591304,1761713441413,-500.0,0.00021917,2]
[392591305,1761713441424,-500.0,0.00021917,2]
[392591306,1761713441435,-500.0,0.00021917,2]
[392591307,1761713441446,-500.0,0.00021917,2]
[392591308,1761713441458,-500.0,0.00021917,2]
[392591309,1761713441469,-500.0,0.00021917,2]
[392591310,1761713441480,-500.0,0.00021917,2]
[392591311,1761713441491,-500.0,0.00021917,2]
[392591312,1761713441502,-500.0,0.00021917,2]
[392591313,1761713441513,-500.0,0.00021917,2]
[392591314,1761713441525,-500.0,0.00021917,2]
[392591315,1761713441536,-504.69121124,0.00021917,2]
[392591316,1761713441546,-500.0,0.00021917,2]
[392591317,1761713441557,-500.0,0.00021917,2]
[392591318,1761713441568,-500.0,0.00021917,2]
[392591319,1761713441578,-500.0,0.00021917,2]
[392591320,1761713441589,-500.0,0.00021917,2]
[392591321,1761713441600,-500.0,0.00021917,2]
[392591322,1761713441611,-151.0,0.00021917,7]
[392591323,1761713441621,-151.0,0.00021917,7]
[392591324,1761713441632,-500.0,0.00021917,2]
[392591325,1761713441642,-505.27,0.00021917,2]
[392591326,1761713441653,-511.89746305,0.00021917,2]
[392591327,1761713441663,-500.0,0.00021917,2]
[392591328,1761713441674,-500.0,0.00021917,2]
[392591329,1761713441684,-502.86512795,0.00021917,2]
[392591330,1761713441695,-264.4853992,0.00021917,2]
[392591331,1761713441707,-519.85381139,0.00021917,2]
[392591332,1761713441718,-500.0,0.00021917,2]
[392591333,1761713441728,-500.0,0.00021917,2]
[392591334,1761713441739,-500.0,0.00021917,2]
[392591335,1761713441750,-506.11,0.00021917,2]
[392591336,1761713441761,-500.0,0.00021917,2]
[392591337,1761713441771,-500.0,0.00021917,2]
[392591338,1761713441782,-500.0,0.00021917,2]
[392591339,1761713441793,-500.0,0.00021917,2]
[392591340,1761713441807,-500.0,0.00021917,2]
[392591341,1761713441817,-500.0,0.00021917,2]
[392591342,1761713441828,-500.0,0.00021917,2]
[392591343,1761713441838,-500.0,0.00021917,2]
[392591344,1761713441849,-500.0,0.00021917,2]
[392591345,1761713441859,-500.0,0.00021917,2]
[392591346,1761713441870,-500.0,0.00021917,2]
[392591347,1761713441880,-500.0,0.00021917,2]
[392591348,1761713441891,-500.0,0.00021917,2]
[392591349,1761713441902,-721.35,0.00021917,2]
[392591350,1761713441911,-500.0,0.00021917,2]
[392591351,1761713442100,-500.0,0.00021917,2]
[392591352,1761713442117,-1102.62,0.00021917,2]
[392591353,1761713442129,-500.0,0.00021917,2]
[392591354,1761713442140,-500.0,0.00021917,2]
[392591355,1761713442150,-323.9860321,0.00021917,2]
[392591356,1761713442159,-500.0,0.00021917,2]
[392591357,1761713442168,-500.0,0.00021917,2]
[392591358,1761713442177,-500.0,0.00021917,2]
[392591359,1761713442187,-500.0,0.00021917,2]
[392591360,1761713442196,-500.0,0.00021917,2]
[392591361,1761713442205,-752.26,0.00021917,2]
[392591362,1761713442214,-500.0,0.00021917,2]
[392591363,1761713442225,-500.0,0.00021917,2]
[392591364,1761713442234,-500.0,0.00021917,2]
[392591365,1761713442243,-500.0,0.00021917,2]
[392591366,1761713442252,-500.0,0.00021917,2]
[392591367,1761713442261,-500.0,0.00021917,2]
[392591368,1761713442270,-500.0,0.00021917,2]
[392591369,1761713442279,-151.0,0.00021917,7]
[392591370,1761713442288,-151.0,0.00021917,7]
[392591371,1761713442297,-500.0,0.00021917,2]
[392591372,1761713442306,-500.0,0.00021917,2]
[392591373,1761713442315,-500.0,0.00021917,2]
[392591374,1761713442324,-560.48,0.00021917,2]
[392591375,1761713442333,-330.61963406,0.00021917,2]
[392591376,1761713442342,-502.0348466,0.00021917,2]
[392591377,1761713442351,-500.0,0.00021917,2]
[392591378,1761713442360,-151.0,0.00021917,7]
[392591379,1761713442369,-151.0,0.00021917,7]
[392591380,1761713442378,-167.316598,0.00021917,7]
[392591381,1761713442387,-500.0,0.00021917,2]
[392591382,1761713442396,-500.0,0.00021917,2]
[392591383,1761713442405,-500.0,0.00021917,2]
[392591384,1761713442414,-500.0,0.00021917,2]
[392591385,1761713442423,-500.0,0.00021917,2]
[392591386,1761713442432,-500.0,0.00021917,2]
[392591387,1761713442441,-500.0,0.00021917,2]
[392591388,1761713442450,-500.0,0.00021917,2]
[392591389,1761713442460,-1367.61,0.00021917,2]
[392591390,1761713442469,-500.0,0.00021917,2]
[392591391,1761713442478,-500.0,0.00021917,2]
[392591392,1761713442488,-500.0,0.00021917,2]
[392591393,1761713442497,-159.94642361,0.00021917,2]
[392591394,1761713442507,-500.0,0.00021917,2]
[392591395,1761713442516,-151.0,0.00021917,7]
[392591396,1761713442525,-500.0,0.00021917,2]
[392591397,1761713442536,-159.247069,0.00021917,7]
[392591398,1761713442545,-152.958502,0.00021917,2]
[392591399,1761713442555,-152.958502,0.00021917,2]
[392591400,1761713442563,-500.0,0.00021917,2]
[392591401,1761713442572,-152.958502,0.00021917,2]
[392591402,1761713442581,-152.958502,0.00021917,2]
[392591403,1761713442591,-152.958502,0.00021917,2]
[392591404,1761713442600,-152.958502,0.00021917,2]
[392591405,1761713442609,-500.0,0.00021917,2]
[392591406,1761713442618,-500.0,0.00021917,2]
[392591407,1761713442627,-500.0,0.00021917,2]
[392591408,1761713442637,-152.958502,0.00021917,2]
[392591409,1761713442646,-152.958502,0.00021917,2]
[392591410,1761713442655,-500.0,0.00021917,2]
[392591411,1761713442663,-500.0,0.00021917,2]
[392591412,1761713442672,-500.0,0.00021917,2]
[392591413,1761713442681,-500.0,0.00021917,2]
[392591414,1761713442690,-500.0,0.00021917,2]
[392591415,1761713442699,-500.0,0.00021917,2]
[392591416,1761713442708,-550.77,0.00021917,2]
[392591417,1761713442718,-500.0,0.00021917,2]
[392591418,1761713442727,-500.0,0.00021917,2]
[392591419,1761713442736,-500.0,0.00021917,2]
[392591420,1761713442745,-509.70773754,0.00021917,2]
[392591421,1761713442755,-500.0,0.00021917,2]
[392591422,1761713442764,-500.0,0.00021917,2]
[392591423,1761713442773,-500.0,0.00021917,2]
[392591425,1761713442782,-500.0,0.00021917,2]
[392591426,1761713442791,-500.0,0.00021917,2]
[392591427,1761713442800,-500.0,0.00021917,2]
[392591428,1761713442809,-500.0,0.00021917,2]
[392591429,1761713442818,-500.0,0.00021917,2]
[392591430,1761713442826,-500.0,0.00021917,2]
[392591431,1761713442836,-500.0,0.00021917,2]
[392591432,1761713442845,-500.0,0.00021917,2]
[392591433,1761713442855,-500.0,0.00021917,2]
[392591434,1761713442863,-500.0,0.00021917,2]
[392591435,1761713442873,-500.0,0.00021917,2]
[392591436,1761713442881,-500.0,0.00021917,2]
[392591437,1761713442890,-500.0,0.00021917,2]
[392591438,1761713442900,-500.0,0.00021917,2]
[392591439,1761713442909,-500.0,0.00021917,2]
[392591440,1761713442918,-500.0,0.00021917,2]
[392591441,1761713442927,-500.0,0.00021917,2]
[392591442,1761713442936,-500.0,0.00021917,2]
[392591443,1761713442945,-500.0,0.00021917,2]
[392591444,1761713442955,-500.0,0.00021917,2]
[392591445,1761713442964,-500.0,0.00021917,2]
[392591446,1761713442973,-500.0,0.00021917,2]
[392591447,1761713442982,-500.0,0.00021917,2]
[392591448,1761713442991,-500.0,0.00021917,2]
[392591449,1761713443000,-500.0,0.00021917,2]
[392591450,1761713443011,-500.0,0.00021917,2]
[392591451,1761713443020,-500.0,0.00021917,2]
[392591452,1761713443031,-500.0,0.00021917,2]
[392591453,1761713443040,-500.0,0.00021917,2]
[392591454,1761713443052,-594.15773966,0.00021917,2]
[392591455,1761713443062,-500.0,0.00021917,2]
[392591456,1761713443071,-500.0,0.00021917,2]
[392591457,1761713443080,-619.01,0.00021917,2]
[392591458,1761713443089,-500.0,0.00021917,2]
[392591459,1761713443099,-500.0,0.00021917,2]
[392591460,1761713443108,-500.0,0.00021917,2]
[392591461,1761713443118,-500.0,0.00021917,2]
[392591462,1761713443127,-500.0,0.00021917,2]
[392591463,1761713443138,-500.0,0.00021917,2]
[392591464,1761713443147,-500.0,0.00021917,2]
[392591465,1761713443157,-503.63174348,0.00021917,2]
[392591466,1761713443166,-500.0,0.00021917,2]
[392591467,1761713443175,-500.0,0.00021917,2]
[392591468,1761713443184,-500.0,0.00021917,2]
[392591469,1761713443194,-500.0,0.00021917,2]
[392591470,1761713443203,-500.0,0.00021917,2]
[392591471,1761713443212,-500.0,0.00021917,2]
[392591472,1761713443222,-500.0,0.00021917,2]
[392591473,1761713443231,-500.0,0.00021917,2]
[392591474,1761713443240,-500.0,0.00021917,2]
[392591475,1761713443250,-500.0,0.00021917,2]
[392591476,1761713443259,-500.0,0.00021917,2]
[392591477,1761713443267,-500.0,0.00021917,2]
[392591478,1761713443276,-500.0,0.00021917,2]
[392591479,1761713443285,-500.0,0.00021917,2]
[392591480,1761713443294,-500.0,0.00021917,2]
[392591481,1761713443304,-500.0,0.00021917,2]
[392591482,1761713443313,-500.0,0.00021917,2]
[392591483,1761713443323,-500.0,0.00021917,2]
[392591484,1761713443332,-500.0,0.00021917,2]
[392591485,1761713443341,-500.0,0.00021917,2]
[392591486,1761713443350,-500.0,0.00021917,2]
[392591487,1761713443359,-500.0,0.00021917,2]
[392591488,1761713443368,-500.0,0.00021917,2]
[392591489,1761713443377,-239.83550367,0.00021917,2]
[392591490,1761713443387,-1471.39,0.00021917,2]
[392591491,1761713443400,-500.0,0.00021917,2]
[392591492,1761713443409,-500.0,0.00021917,2]
[392591493,1761713443418,-5814.16,0.00021917,2]
[392591494,1761713443427,-500.0,0.00021917,2]
[392591495,1761713443436,-500.0,0.00021917,2]
[392591496,1761713443445,-500.0,0.00021917,2]
[392591497,1761713443455,-500.0,0.00021917,2]
[392591498,1761713443464,-500.0,0.00021917,2]
[392591499,1761713443473,-500.0,0.00021917,2]
[392591500,1761713443481,-500.0,0.00021917,2]
[392591501,1761713443492,-156.920053,0.00021917,7]
[392591502,1761713443501,-500.0,0.00021917,2]
[392591503,1761713443510,-500.0,0.00021917,2]
[392591504,1761713443519,-500.0,0.00021917,2]
[392591505,1761713443528,-500.0,0.00021917,2]
[392591506,1761713443537,-405.40026019,0.00021918,7]
[392591507,1761713443546,-477.0,0.00021935,2]
[392591508,1761713443555,-500.0,0.00021973,2]
[392591509,1761713443564,-500.0,0.00021973,2]
[392591510,1761713443580,-500.57004801,0.00021973,2]
[392591511,1761713443589,-500.88348214,0.00021973,2]
[392591512,1761713443598,-501.05715058,0.00021973,2]
[392591513,1761713443607,-503.32607945,0.00021973,2]
[392591514,1761713443616,-500.0,0.00021973,2]
[392591515,1761713443626,-500.68192862,0.00021973,2]
[392591516,1761713443635,-501.02698027,0.00021973,2]
[392591517,1761713443644,-500.0,0.00021973,2]
[392591518,1761713443653,-501.40528318,0.00021973,2]
[392591519,1761713443662,-215.03163319,0.00021973,2]
[392591520,1761713443671,-500.0,0.00021973,2]
[392591521,1761713443680,-501.35468235,0.00021973,2]
[392591522,1761713443689,-500.0,0.00021973,2]
[392591523,1761713443698,-500.77295443,0.00021973,2]
[392591524,1761713443707,-501.78566995,0.00021973,2]
[392591525,1761713443717,-500.0,0.00021973,2]
[392591526,1761713443727,-500.82674948,0.00021973,2]
[392591527,1761713443737,-500.0,0.00021973,2]
[392591528,1761713443747,-500.0,0.00021973,2]
[392591529,1761713443756,-189.203375,0.00021973,7]
[392591530,1761713443766,-500.0,0.00021973,2]
[392591531,1761713443776,-221.58531696,0.00021974,2]
[392591532,1761713443787,-500.0,0.00021986,5]
[392591533,1761713443798,-45021.73,0.00022,7]
[392591534,1761713443808,-403.72361849,0.00022,7]
[392591535,1761713443818,-151.0,0.00022,3]
[392591536,1761713443830,-151.0,0.00022,7]
[392591537,1761713443841,-151.0,0.00022,5]
[392591538,1761713443851,-151.0,0.00022,7]
[392591539,1761713443861,-151.0,0.00022,7]
[392591540,1761713443870,-152.958502,0.00022,2]
[392591541,1761713443878,-152.958502,0.00022,2]
[392591542,1761713443888,-152.958502,0.00022,2]
[392591543,1761713443897,-152.958502,0.00022,2]
[392591544,1761713443906,-477.0,0.00022037,2]
[392591545,1761713443916,-477.0,0.00022046,2]
[392591546,1761713443925,-160.0,0.00022093,2]
[392591547,1761713443936,-151.0,0.000221,8]
[392591548,1761713443945,-151.0,0.000221,5]
[392591549,1761713443955,-477.0,0.00022107,2]
[392591550,1761713443967,-501.84955245,0.00022173,2]
[392591551,1761713443976,-500.0,0.00022173,2]
[392591552,1761713443985,-505.40119459,0.00022173,2]
[392591553,1761713443995,-500.0,0.00022173,2]
[392591554,1761713444004,-501.0724323,0.00022173,2]
[392591555,1761713444013,-500.60259655,0.00022173,2]
[392591556,1761713444022,-500.0,0.00022173,2]
[392591557,1761713444032,-502.86715927,0.00022173,2]
[392591558,1761713444041,-500.93368508,0.00022173,2]
[392591559,1761713444050,-352.80705693,0.00022173,2]
[392591560,1761713444064,-500.91051802,0.00022173,2]
[392591561,1761713444073,-500.0,0.00022173,2]
[392591562,1761713444082,-500.0,0.00022173,2]
[392591563,1761713444091,-158.70644004,0.00022173,2]
[392591564,1761713444102,-500.0,0.00022173,2]
[392591565,1761713444111,-500.0,0.00022173,2]
[392591566,1761713444120,-500.0,0.00022173,2]
[392591567,1761713444129,-500.0,0.00022173,2]
[392591568,1761713444142,-502.74129062,0.00022173,2]
[392591569,1761713444151,-280.18812242,0.00022173,2]
[392591570,1761713444160,-500.50043889,0.00022173,2]
[392591571,1761713444170,-500.0,0.00022173,2]
[392591572,1761713444179,-500.72363013,0.00022173,2]
[392591573,1761713444188,-500.48175657,0.00022173,2]
[392591574,1761713444198,-500.56846804,0.00022173,2]
[392591575,1761713444207,-500.0,0.00022173,2]
[392591576,1761713444218,-500.0,0.00022173,2]
[392591577,1761713444227,-1000.0,0.00022191,2]